[Event "Titled Tuesday Blitz February 01 A 2022"]
[White "Deac, Bogdan-Daniel"]
[Black "Vasquez Schroeder, Rodrigo"]
[WhiteFideId "1226380"]
[BlackFideId "3400042"]
[WhiteElo "2646"]
[BlackElo "2568"]
[Result "1-0"]
[Round "10"]
[TimeControl "180+1"]
[Date "2022.02.01"]
[WhiteClock "0:00:11"]
[BlackClock "0:01:27"]

1. e4 {[%clk 0:03:00]}  e6 {[%clk 0:02:58]} 2. Qe2 {[%clk 0:02:59]}  c5 {[%clk 0:02:50]} 3. Nf3 {[%clk 0:02:59]}  Be7 {[%clk 0:02:46]} 4. g3 {[%clk 0:02:54]}  d5 {[%clk 0:02:46]} 5. d3 {[%clk 0:02:36]}  Nc6 {[%clk 0:02:46]} 6. Bg2 {[%clk 0:02:36]}  h5 {[%clk 0:02:37]} 7. h3 {[%clk 0:02:29]}  Nf6 {[%clk 0:02:33]} 8. O-O {[%clk 0:02:25]}  b6 {[%clk 0:02:31]} 9. e5 {[%clk 0:02:22]}  Nd7 {[%clk 0:02:30]} 10. c4 {[%clk 0:02:22]}  dxc4 {[%clk 0:02:24]} 11. dxc4 {[%clk 0:02:20]}  Bb7 {[%clk 0:02:24]} 12. Nc3 {[%clk 0:02:14]}  a6 {[%clk 0:02:12]} 13. Rd1 {[%clk 0:01:58]}  Qc8 {[%clk 0:02:11]} 14. Bf4 {[%clk 0:01:44]}  O-O {[%clk 0:01:59]} 15. Ne4 {[%clk 0:01:39]}  Qc7 {[%clk 0:01:56]} 16. Nf6+ {[%clk 0:01:09]}  gxf6 {[%clk 0:01:46]} 17. exf6 {[%clk 0:01:08]}  e5 {[%clk 0:01:46]} 18. fxe7 {[%clk 0:00:36]}  Rfe8 {[%clk 0:01:44]} 19. Bg5 {[%clk 0:00:31]}  f6 {[%clk 0:01:39]} 20. Nh4 {[%clk 0:00:14]}  fxg5 {[%clk 0:01:33]} 21. Qxh5 {[%clk 0:00:14]}  Rxe7 {[%clk 0:01:31]} 22. Bd5+ {[%clk 0:00:14]}  Kg7 {[%clk 0:01:27]} 23. Qg6+ {[%clk 0:00:10]}  Kh8 {[%clk 0:01:27]} 24. Qh6+ {[%clk 0:00:11]}  Rh7 {[%clk 0:01:27]} 25. Ng6# {[%clk 0:00:11]} 1-0


[Site "https://www.chess.com"]

[Event "Titled Tuesday Blitz February 01 A 2022"]
[White "Goryachkina, Aleksandra"]
[Black "Yeletsky, Ivan"]
[WhiteFideId "4147103"]
[BlackFideId "24180327"]
[WhiteElo "2426"]
[BlackElo "2348"]
[Result "1/2-1/2"]
[Round "10"]
[TimeControl "180+1"]
[Date "2022.02.01"]
[WhiteClock "0:00:07"]
[BlackClock "0:00:36"]

1. e4 {[%clk 0:02:59]}  e5 {[%clk 0:02:58]} 2. Nf3 {[%clk 0:02:59]}  Nc6 {[%clk 0:02:58]} 3. d4 {[%clk 0:02:59]}  exd4 {[%clk 0:02:58]} 4. Nxd4 {[%clk 0:03:00]}  Nf6 {[%clk 0:02:58]} 5. Nxc6 {[%clk 0:03:00]}  bxc6 {[%clk 0:02:58]} 6. Nc3 {[%clk 0:03:00]}  Bb4 {[%clk 0:02:57]} 7. Bd3 {[%clk 0:03:00]}  d5 {[%clk 0:02:56]} 8. exd5 {[%clk 0:03:01]}  O-O {[%clk 0:02:55]} 9. O-O {[%clk 0:03:01]}  cxd5 {[%clk 0:02:55]} 10. h3 {[%clk 0:02:56]}  Be6 {[%clk 0:02:53]} 11. Qf3 {[%clk 0:02:54]}  Rb8 {[%clk 0:02:53]} 12. Bg5 {[%clk 0:02:38]}  Be7 {[%clk 0:02:52]} 13. b3 {[%clk 0:02:31]}  h6 {[%clk 0:02:49]} 14. Bf4 {[%clk 0:02:28]}  Bd6 {[%clk 0:02:45]} 15. Rad1 {[%clk 0:02:08]}  Rb4 {[%clk 0:02:44]} 16. Ne2 {[%clk 0:01:56]}  Bxf4 {[%clk 0:02:36]} 17. Nxf4 {[%clk 0:01:56]}  Qd6 {[%clk 0:02:37]} 18. c4 {[%clk 0:01:53]}  d4 {[%clk 0:02:24]} 19. Rfe1 {[%clk 0:01:50]}  c5 {[%clk 0:02:11]} 20. Nh5 {[%clk 0:01:37]}  Nxh5 {[%clk 0:02:09]} 21. Qxh5 {[%clk 0:01:38]}  Rb7 {[%clk 0:01:44]} 22. Re5 {[%clk 0:01:35]}  Rc7 {[%clk 0:01:43]} 23. Rde1 {[%clk 0:01:30]}  a5 {[%clk 0:01:37]} 24. Qe2 {[%clk 0:01:21]}  Re8 {[%clk 0:01:32]} 25. f4 {[%clk 0:01:18]}  Rcc8 {[%clk 0:01:32]} 26. Qe4 {[%clk 0:01:07]}  g6 {[%clk 0:01:27]} 27. f5 {[%clk 0:00:58]}  gxf5 {[%clk 0:01:28]} 28. Qf3 {[%clk 0:00:49]}  Bd7 {[%clk 0:01:21]} 29. Rxe8+ {[%clk 0:00:45]}  Rxe8 {[%clk 0:01:21]} 30. Rxe8+ {[%clk 0:00:41]}  Bxe8 {[%clk 0:01:21]} 31. Qxf5 {[%clk 0:00:41]}  Bd7 {[%clk 0:01:13]} 32. Qe4 {[%clk 0:00:34]}  Kg7 {[%clk 0:01:10]} 33. Qf3 {[%clk 0:00:26]}  Qe5 {[%clk 0:01:07]} 34. Be4 {[%clk 0:00:23]}  a4 {[%clk 0:00:59]} 35. bxa4 {[%clk 0:00:19]}  Bxa4 {[%clk 0:00:59]} 36. Qg4+ {[%clk 0:00:17]}  Qg5 {[%clk 0:00:59]} 37. Qxg5+ {[%clk 0:00:13]}  hxg5 {[%clk 0:00:59]} 38. Kf2 {[%clk 0:00:14]}  Kf6 {[%clk 0:01:00]} 39. Kf3 {[%clk 0:00:12]}  Ke5 {[%clk 0:00:57]} 40. Bd3 {[%clk 0:00:11]}  Bd1+ {[%clk 0:00:54]} 41. Kf2 {[%clk 0:00:10]}  f5 {[%clk 0:00:50]} 42. g3 {[%clk 0:00:08]}  f4 {[%clk 0:00:50]} 43. a3 {[%clk 0:00:07]}  Bb3 {[%clk 0:00:46]} 44. Kf3 {[%clk 0:00:06]}  Bd1+ {[%clk 0:00:45]} 45. Kf2 {[%clk 0:00:07]}  Ba4 {[%clk 0:00:41]} 46. Kf3 {[%clk 0:00:06]}  Bd1+ {[%clk 0:00:36]} 47. Kf2 {[%clk 0:00:07]} 1/2-1/2


[Site "https://www.chess.com"]

[Event "Titled Tuesday Blitz February 01 A 2022"]
[White "Hansen, Eric"]
[Black "Paravyan, David"]
[WhiteFideId "2606771"]
[BlackFideId "4194985"]
[WhiteElo "2568"]
[BlackElo "2569"]
[Result "1-0"]
[Round "10"]
[TimeControl "180+1"]
[Date "2022.02.01"]
[WhiteClock "0:00:07"]
[BlackClock "0:00:10"]

1. e4 {[%clk 0:03:00]}  e5 {[%clk 0:03:00]} 2. Nf3 {[%clk 0:03:00]}  Nf6 {[%clk 0:03:00]} 3. Nxe5 {[%clk 0:03:00]}  d6 {[%clk 0:03:00]} 4. Nf3 {[%clk 0:03:00]}  Nxe4 {[%clk 0:03:01]} 5. Nc3 {[%clk 0:03:01]}  Nxc3 {[%clk 0:03:01]} 6. dxc3 {[%clk 0:03:02]}  Be7 {[%clk 0:03:01]} 7. Be3 {[%clk 0:03:02]}  O-O {[%clk 0:03:02]} 8. Qd2 {[%clk 0:03:03]}  Nd7 {[%clk 0:03:02]} 9. O-O-O {[%clk 0:03:03]}  Nf6 {[%clk 0:03:03]} 10. Bd3 {[%clk 0:02:49]}  Re8 {[%clk 0:03:02]} 11. Rde1 {[%clk 0:02:33]}  c5 {[%clk 0:02:50]} 12. Bg5 {[%clk 0:02:29]}  Be6 {[%clk 0:02:48]} 13. Kb1 {[%clk 0:02:27]}  c4 {[%clk 0:02:35]} 14. Bf1 {[%clk 0:02:16]}  d5 {[%clk 0:02:34]} 15. Qf4 {[%clk 0:01:56]}  Qb6 {[%clk 0:02:23]} 16. Qh4 {[%clk 0:01:09]}  Ba3 {[%clk 0:02:13]} 17. Bc1 {[%clk 0:01:09]}  Ne4 {[%clk 0:02:11]} 18. Rxe4 {[%clk 0:01:01]}  dxe4 {[%clk 0:02:10]} 19. Ng5 {[%clk 0:01:02]}  h6 {[%clk 0:01:56]} 20. Nxe6 {[%clk 0:01:02]}  Rxe6 {[%clk 0:01:56]} 21. Bxc4 {[%clk 0:01:02]}  Rf6 {[%clk 0:01:53]} 22. Qxe4 {[%clk 0:00:53]}  Rxf2 {[%clk 0:01:43]} 23. Bb3 {[%clk 0:00:48]}  Bc5 {[%clk 0:01:42]} 24. g4 {[%clk 0:00:46]}  Rd8 {[%clk 0:01:30]} 25. g5 {[%clk 0:00:36]}  Qc6 {[%clk 0:01:30]} 26. Qxc6 {[%clk 0:00:31]}  bxc6 {[%clk 0:01:31]} 27. g6 {[%clk 0:00:31]}  Bd6 {[%clk 0:01:02]} 28. Be3 {[%clk 0:00:23]}  Rf3 {[%clk 0:00:59]} 29. Bxa7 {[%clk 0:00:19]}  Bxh2 {[%clk 0:00:57]} 30. a4 {[%clk 0:00:17]}  Bc7 {[%clk 0:00:41]} 31. Re1 {[%clk 0:00:16]}  Kf8 {[%clk 0:00:34]} 32. gxf7 {[%clk 0:00:10]}  Rf5 {[%clk 0:00:33]} 33. Re6 {[%clk 0:00:06]}  Bd6 {[%clk 0:00:31]} 34. Rg6 {[%clk 0:00:04]}  c5 {[%clk 0:00:29]} 35. Bb6 {[%clk 0:00:04]}  Rd7 {[%clk 0:00:28]} 36. Be6 {[%clk 0:00:04]}  Rf1+ {[%clk 0:00:29]} 37. Ka2 {[%clk 0:00:05]}  Rb7 {[%clk 0:00:29]} 38. a5 {[%clk 0:00:05]}  Rb8 {[%clk 0:00:20]} 39. Bd5 {[%clk 0:00:05]}  Rf6 {[%clk 0:00:19]} 40. Rg4 {[%clk 0:00:06]}  h5 {[%clk 0:00:19]} 41. Rg5 {[%clk 0:00:06]}  g6 {[%clk 0:00:19]} 42. Kb3 {[%clk 0:00:06]}  h4 {[%clk 0:00:19]} 43. Kc4 {[%clk 0:00:06]}  h3 {[%clk 0:00:19]} 44. Rg1 {[%clk 0:00:06]}  h2 {[%clk 0:00:20]} 45. Rh1 {[%clk 0:00:07]}  g5 {[%clk 0:00:20]} 46. b4 {[%clk 0:00:06]}  cxb4 {[%clk 0:00:19]} 47. cxb4 {[%clk 0:00:07]}  g4 {[%clk 0:00:20]} 48. c3 {[%clk 0:00:05]}  g3 {[%clk 0:00:20]} 49. Bd4 {[%clk 0:00:06]}  Rf5 {[%clk 0:00:20]} 50. Bg2 {[%clk 0:00:06]}  Rc8+ {[%clk 0:00:18]} 51. Kd3 {[%clk 0:00:06]}  Rd8 {[%clk 0:00:18]} 52. a6 {[%clk 0:00:06]}  Bb8 {[%clk 0:00:14]} 53. Kc4 {[%clk 0:00:05]}  Rxf7 {[%clk 0:00:15]} 54. b5 {[%clk 0:00:05]}  Re7 {[%clk 0:00:09]} 55. b6 {[%clk 0:00:04]}  Re2 {[%clk 0:00:10]} 56. Bb7 {[%clk 0:00:03]}  g2 {[%clk 0:00:10]} 57. Bxg2 {[%clk 0:00:02]}  Rxg2 {[%clk 0:00:11]} 58. a7 {[%clk 0:00:03]}  Bxa7 {[%clk 0:00:11]} 59. bxa7 {[%clk 0:00:03]}  Re2 {[%clk 0:00:10]} 60. Kb5 {[%clk 0:00:03]}  Ke7 {[%clk 0:00:09]} 61. Rf1 {[%clk 0:00:02]}  Rg2 {[%clk 0:00:07]} 62. Bf6+ {[%clk 0:00:01]}  Kd7 {[%clk 0:00:08]} 63. Bxd8 {[%clk 0:00:02]}  Rg1 {[%clk 0:00:08]} 64. Rf7+ {[%clk 0:00:02]}  Ke6 {[%clk 0:00:08]} 65. Re7+ {[%clk 0:00:02]}  Kd6 {[%clk 0:00:08]} 66. a8=Q {[%clk 0:00:03]}  h1=Q {[%clk 0:00:07]} 67. Qxh1 {[%clk 0:00:03]}  Rxh1 {[%clk 0:00:07]} 68. Re3 {[%clk 0:00:04]}  Rd1 {[%clk 0:00:06]} 69. Kc4 {[%clk 0:00:04]}  Kc6 {[%clk 0:00:06]} 70. Bf6 {[%clk 0:00:05]}  Rf1 {[%clk 0:00:07]} 71. Bd4 {[%clk 0:00:04]}  Rh1 {[%clk 0:00:07]} 72. Re6+ {[%clk 0:00:05]}  Kd7 {[%clk 0:00:08]} 73. Rf6 {[%clk 0:00:05]}  Ra1 {[%clk 0:00:08]} 74. Kd5 {[%clk 0:00:05]}  Rd1 {[%clk 0:00:09]} 75. c4 {[%clk 0:00:06]}  Ke7 {[%clk 0:00:10]} 76. Rg6 {[%clk 0:00:06]}  Kf7 {[%clk 0:00:09]} 77. Rg7+ {[%clk 0:00:06]}  Ke8 {[%clk 0:00:10]} 78. c5 {[%clk 0:00:06]}  Kf8 {[%clk 0:00:10]} 79. Rh7 {[%clk 0:00:07]} 1-0


[Site "https://www.chess.com"]

[Event "Titled Tuesday Blitz February 01 A 2022"]
[White "Kamsky, Gata"]
[Black "Arabidze, Meri"]
[WhiteFideId "2000024"]
[BlackFideId "13604040"]
[WhiteElo "2645"]
[BlackElo "2329"]
[Result "1/2-1/2"]
[Round "10"]
[TimeControl "180+1"]
[Date "2022.02.01"]
[WhiteClock "0:00:41"]
[BlackClock "0:00:15"]

1. d4 {[%clk 0:02:52]}  Nf6 {[%clk 0:02:59]} 2. Nf3 {[%clk 0:02:50]}  e6 {[%clk 0:02:59]} 3. Bf4 {[%clk 0:02:48]}  d5 {[%clk 0:02:59]} 4. e3 {[%clk 0:02:48]}  Bd6 {[%clk 0:03:00]} 5. Nbd2 {[%clk 0:02:47]}  O-O {[%clk 0:02:58]} 6. c3 {[%clk 0:02:46]}  c5 {[%clk 0:02:58]} 7. Bd3 {[%clk 0:02:44]}  Nc6 {[%clk 0:02:58]} 8. Bg3 {[%clk 0:02:41]}  b6 {[%clk 0:02:58]} 9. Qe2 {[%clk 0:02:41]}  Bb7 {[%clk 0:02:58]} 10. Rd1 {[%clk 0:02:41]}  h6 {[%clk 0:02:57]} 11. Ne5 {[%clk 0:02:40]}  Qc7 {[%clk 0:02:53]} 12. f4 {[%clk 0:02:39]}  Ne7 {[%clk 0:02:50]} 13. Qf3 {[%clk 0:02:37]}  Nf5 {[%clk 0:02:49]} 14. Bf2 {[%clk 0:02:37]}  Be7 {[%clk 0:02:49]} 15. g4 {[%clk 0:02:37]}  Nd6 {[%clk 0:02:49]} 16. g5 {[%clk 0:02:37]}  hxg5 {[%clk 0:02:41]} 17. fxg5 {[%clk 0:02:37]}  Nfe4 {[%clk 0:02:41]} 18. h4 {[%clk 0:02:30]}  f6 {[%clk 0:02:20]} 19. Ng6 {[%clk 0:02:27]}  fxg5 {[%clk 0:02:05]} 20. Qh5 {[%clk 0:02:24]}  Rxf2 {[%clk 0:01:35]} 21. Bxe4 {[%clk 0:02:12]}  Nxe4 {[%clk 0:01:24]} 22. Nxe4 {[%clk 0:02:10]}  Rf5 {[%clk 0:00:54]} 23. Nxe7+ {[%clk 0:01:53]}  Qxe7 {[%clk 0:00:52]} 24. Nxg5 {[%clk 0:01:54]}  Qf6 {[%clk 0:00:42]} 25. Kd2 {[%clk 0:01:25]}  Rf2+ {[%clk 0:00:39]} 26. Kc1 {[%clk 0:01:24]}  Qf5 {[%clk 0:00:40]} 27. Rd2 {[%clk 0:01:15]}  Rxd2 {[%clk 0:00:36]} 28. Kxd2 {[%clk 0:01:15]}  Qf2+ {[%clk 0:00:29]} 29. Qe2 {[%clk 0:01:13]}  Qxe2+ {[%clk 0:00:27]} 30. Kxe2 {[%clk 0:01:13]}  Re8 {[%clk 0:00:27]} 31. Nf3 {[%clk 0:01:13]}  Ba6+ {[%clk 0:00:24]} 32. Kf2 {[%clk 0:01:12]}  Bd3 {[%clk 0:00:21]} 33. Ne5 {[%clk 0:01:11]}  Be4 {[%clk 0:00:21]} 34. Rg1 {[%clk 0:01:11]}  Rf8+ {[%clk 0:00:20]} 35. Ke2 {[%clk 0:01:11]}  Rf6 {[%clk 0:00:19]} 36. Rg5 {[%clk 0:01:08]}  cxd4 {[%clk 0:00:18]} 37. cxd4 {[%clk 0:01:06]}  Kh7 {[%clk 0:00:17]} 38. Rg4 {[%clk 0:01:02]}  Rh6 {[%clk 0:00:16]} 39. Kd2 {[%clk 0:00:59]}  Rf6 {[%clk 0:00:15]} 40. Ke2 {[%clk 0:00:55]}  Rf8 {[%clk 0:00:15]} 41. Rf4 {[%clk 0:00:48]}  Rc8 {[%clk 0:00:12]} 42. Rf7 {[%clk 0:00:47]}  Rc2+ {[%clk 0:00:12]} 43. Ke1 {[%clk 0:00:45]}  Rxb2 {[%clk 0:00:13]} 44. Rxa7 {[%clk 0:00:44]}  Rb1+ {[%clk 0:00:13]} 45. Kf2 {[%clk 0:00:44]}  Rb2+ {[%clk 0:00:14]} 46. Kg3 {[%clk 0:00:44]}  Re2 {[%clk 0:00:14]} 47. Kf4 {[%clk 0:00:43]}  Rf2+ {[%clk 0:00:14]} 48. Kg5 {[%clk 0:00:42]}  Rg2+ {[%clk 0:00:14]} 49. Kf4 {[%clk 0:00:42]}  Rf2+ {[%clk 0:00:14]} 50. Kg3 {[%clk 0:00:42]}  Rg2+ {[%clk 0:00:14]} 51. Kf4 {[%clk 0:00:41]}  Rf2+ {[%clk 0:00:15]} 1/2-1/2


[Site "https://www.chess.com"]

[Event "Titled Tuesday Blitz February 01 A 2022"]
[White "Kosteniuk, Alexandra"]
[Black "Wieczorek, Oskar"]
[WhiteFideId "4128125"]
[BlackFideId "1133950"]
[WhiteElo "2469"]
[BlackElo "2319"]
[Result "1/2-1/2"]
[Round "10"]
[TimeControl "180+1"]
[Date "2022.02.01"]
[WhiteClock "0:00:11"]
[BlackClock "0:00:10"]

1. f4 {[%clk 0:03:00]}  a5 {[%clk 0:02:59]} 2. Nf3 {[%clk 0:03:00]}  b5 {[%clk 0:02:56]} 3. e4 {[%clk 0:03:00]}  b4 {[%clk 0:02:56]} 4. d4 {[%clk 0:02:59]}  Bb7 {[%clk 0:02:56]} 5. Bd3 {[%clk 0:02:59]}  e6 {[%clk 0:02:56]} 6. O-O {[%clk 0:02:56]}  Nf6 {[%clk 0:02:56]} 7. e5 {[%clk 0:02:52]}  Nd5 {[%clk 0:02:57]} 8. c4 {[%clk 0:02:51]}  bxc3 {[%clk 0:02:57]} 9. bxc3 {[%clk 0:02:50]}  c5 {[%clk 0:02:57]} 10. f5 {[%clk 0:02:39]}  Be7 {[%clk 0:02:54]} 11. Qe1 {[%clk 0:02:22]}  cxd4 {[%clk 0:02:51]} 12. cxd4 {[%clk 0:02:21]}  Nb4 {[%clk 0:02:30]} 13. Be4 {[%clk 0:02:18]}  Bxe4 {[%clk 0:02:29]} 14. Qxe4 {[%clk 0:02:18]}  N8c6 {[%clk 0:02:19]} 15. Nc3 {[%clk 0:02:04]}  Qb6 {[%clk 0:02:00]} 16. Be3 {[%clk 0:01:58]}  O-O {[%clk 0:01:06]} 17. f6 {[%clk 0:01:41]}  gxf6 {[%clk 0:01:06]} 18. exf6 {[%clk 0:01:40]}  Bxf6 {[%clk 0:00:51]} 19. d5 {[%clk 0:01:40]}  Qd8 {[%clk 0:00:36]} 20. dxc6 {[%clk 0:01:31]}  Bxc3 {[%clk 0:00:36]} 21. Rac1 {[%clk 0:01:31]}  Bg7 {[%clk 0:00:32]} 22. c7 {[%clk 0:01:30]}  Qc8 {[%clk 0:00:20]} 23. Bc5 {[%clk 0:01:30]}  Re8 {[%clk 0:00:12]} 24. Bd6 {[%clk 0:01:30]}  Ra6 {[%clk 0:00:12]} 25. Rfd1 {[%clk 0:01:27]}  Nd5 {[%clk 0:00:11]} 26. Bg3 {[%clk 0:01:16]}  f5 {[%clk 0:00:08]} 27. Qh4 {[%clk 0:01:12]}  Rc6 {[%clk 0:00:08]} 28. Rxc6 {[%clk 0:00:55]}  dxc6 {[%clk 0:00:08]} 29. Rc1 {[%clk 0:00:46]}  Qd7 {[%clk 0:00:05]} 30. Qc4 {[%clk 0:00:23]}  Rc8 {[%clk 0:00:06]} 31. Qxc6 {[%clk 0:00:22]}  Qxc6 {[%clk 0:00:07]} 32. Rxc6 {[%clk 0:00:23]}  f4 {[%clk 0:00:08]} 33. Bf2 {[%clk 0:00:20]}  Rxc7 {[%clk 0:00:08]} 34. Rxc7 {[%clk 0:00:21]}  Nxc7 {[%clk 0:00:09]} 35. Bb6 {[%clk 0:00:21]}  Nd5 {[%clk 0:00:09]} 36. Bxa5 {[%clk 0:00:21]}  e5 {[%clk 0:00:10]} 37. Nd2 {[%clk 0:00:20]}  Kf7 {[%clk 0:00:08]} 38. a4 {[%clk 0:00:18]}  Ke6 {[%clk 0:00:08]} 39. Ne4 {[%clk 0:00:17]}  Kf5 {[%clk 0:00:08]} 40. Nd6+ {[%clk 0:00:17]}  Ke6 {[%clk 0:00:09]} 41. Ne4 {[%clk 0:00:17]}  Kf5 {[%clk 0:00:09]} 42. Nd6+ {[%clk 0:00:15]}  Ke6 {[%clk 0:00:10]} 43. Nb5 {[%clk 0:00:15]}  e4 {[%clk 0:00:09]} 44. Be1 {[%clk 0:00:14]}  e3 {[%clk 0:00:07]} 45. Kf1 {[%clk 0:00:14]}  Kf5 {[%clk 0:00:06]} 46. Ke2 {[%clk 0:00:14]}  Ke4 {[%clk 0:00:06]} 47. Nd6+ {[%clk 0:00:15]}  Ke5 {[%clk 0:00:05]} 48. Nb5 {[%clk 0:00:15]}  Ke4 {[%clk 0:00:05]} 49. a5 {[%clk 0:00:15]}  Be5 {[%clk 0:00:04]} 50. a6 {[%clk 0:00:15]}  Nb6 {[%clk 0:00:05]} 51. a7 {[%clk 0:00:14]}  Na8 {[%clk 0:00:05]} 52. Bc3 {[%clk 0:00:12]}  Bxc3 {[%clk 0:00:04]} 53. Nxc3+ {[%clk 0:00:12]}  Kd4 {[%clk 0:00:05]} 54. Nd1 {[%clk 0:00:11]}  Kc5 {[%clk 0:00:05]} 55. Kf3 {[%clk 0:00:09]}  Kb6 {[%clk 0:00:05]} 56. Nc3 {[%clk 0:00:10]}  Kxa7 {[%clk 0:00:05]} 57. Kxf4 {[%clk 0:00:11]}  Nb6 {[%clk 0:00:06]} 58. Kxe3 {[%clk 0:00:11]}  Kb7 {[%clk 0:00:06]} 59. Kf4 {[%clk 0:00:12]}  Kc7 {[%clk 0:00:07]} 60. Kf5 {[%clk 0:00:12]}  Kd6 {[%clk 0:00:08]} 61. Kf6 {[%clk 0:00:13]}  Nc4 {[%clk 0:00:09]} 62. Ne4+ {[%clk 0:00:13]}  Kd5 {[%clk 0:00:09]} 63. Ng5 {[%clk 0:00:13]}  Ne3 {[%clk 0:00:09]} 64. g3 {[%clk 0:00:11]}  Ng4+ {[%clk 0:00:09]} 65. Kf5 {[%clk 0:00:11]}  Nxh2 {[%clk 0:00:10]} 66. Nxh7 {[%clk 0:00:12]}  Nf1 {[%clk 0:00:10]} 67. Nf6+ {[%clk 0:00:11]}  Kd4 {[%clk 0:00:10]} 68. Kf4 {[%clk 0:00:11]}  Nxg3 {[%clk 0:00:10]} 1/2-1/2


[Site "https://www.chess.com"]

[Event "Titled Tuesday Blitz February 01 A 2022"]
[White "Lin, Dachey"]
[Black "Wagner, Dennis"]
[WhiteFideId "2029650"]
[BlackFideId "24650684"]
[WhiteElo "2679"]
[BlackElo "2355"]
[Result "1-0"]
[Round "10"]
[TimeControl "180+1"]
[Date "2022.02.01"]
[WhiteClock "0:00:34"]
[BlackClock "0:00:20"]

1. g4 {[%clk 0:03:00]}  e5 {[%clk 0:02:56]} 2. d4 {[%clk 0:02:48]}  e4 {[%clk 0:02:45]} 3. c4 {[%clk 0:02:30]}  c6 {[%clk 0:02:41]} 4. d5 {[%clk 0:02:28]}  Bb4+ {[%clk 0:02:38]} 5. Nc3 {[%clk 0:02:26]}  d6 {[%clk 0:02:30]} 6. g5 {[%clk 0:02:17]}  Bxc3+ {[%clk 0:02:26]} 7. bxc3 {[%clk 0:02:17]}  Qa5 {[%clk 0:02:24]} 8. Qd4 {[%clk 0:02:16]}  Ne7 {[%clk 0:02:20]} 9. Bd2 {[%clk 0:02:06]}  O-O {[%clk 0:02:14]} 10. Qxe4 {[%clk 0:01:59]}  Na6 {[%clk 0:02:00]} 11. Qxe7 {[%clk 0:01:58]}  cxd5 {[%clk 0:01:56]} 12. Bg2 {[%clk 0:01:54]}  dxc4 {[%clk 0:01:43]} 13. Qxd6 {[%clk 0:01:50]}  Rd8 {[%clk 0:01:39]} 14. Qf4 {[%clk 0:01:50]}  Nc5 {[%clk 0:01:32]} 15. Nf3 {[%clk 0:01:50]}  Be6 {[%clk 0:01:27]} 16. O-O {[%clk 0:01:49]}  Bd5 {[%clk 0:01:27]} 17. Nd4 {[%clk 0:01:42]}  Bxg2 {[%clk 0:01:24]} 18. Kxg2 {[%clk 0:01:43]}  Re8 {[%clk 0:01:24]} 19. Rfb1 {[%clk 0:01:35]}  a6 {[%clk 0:01:12]} 20. Rb4 {[%clk 0:01:12]}  b5 {[%clk 0:00:50]} 21. Be3 {[%clk 0:00:55]}  Ne4 {[%clk 0:00:50]} 22. a4 {[%clk 0:00:46]}  Nxc3 {[%clk 0:00:47]} 23. Nc6 {[%clk 0:00:46]}  Nxe2 {[%clk 0:00:24]} 24. Nxa5 {[%clk 0:00:31]}  Nxf4+ {[%clk 0:00:24]} 25. Bxf4 {[%clk 0:00:32]}  Rac8 {[%clk 0:00:20]} 26. axb5 {[%clk 0:00:31]}  axb5 {[%clk 0:00:21]} 27. Rxb5 {[%clk 0:00:32]}  c3 {[%clk 0:00:21]} 28. Rc1 {[%clk 0:00:31]}  Re4 {[%clk 0:00:21]} 29. Rxc3 {[%clk 0:00:30]}  Rce8 {[%clk 0:00:19]} 30. Be3 {[%clk 0:00:30]}  h6 {[%clk 0:00:19]} 31. gxh6 {[%clk 0:00:30]}  gxh6 {[%clk 0:00:19]} 32. Rc4 {[%clk 0:00:29]}  Kh7 {[%clk 0:00:18]} 33. Rxe4 {[%clk 0:00:28]}  Rxe4 {[%clk 0:00:19]} 34. Nc6 {[%clk 0:00:28]}  Kg6 {[%clk 0:00:19]} 35. Nd4 {[%clk 0:00:29]}  Rg4+ {[%clk 0:00:19]} 36. Kf3 {[%clk 0:00:29]}  Rg1 {[%clk 0:00:18]} 37. h4 {[%clk 0:00:30]}  f6 {[%clk 0:00:19]} 38. h5+ {[%clk 0:00:30]}  Kf7 {[%clk 0:00:19]} 39. Rb7+ {[%clk 0:00:31]}  Ke8 {[%clk 0:00:20]} 40. Bxh6 {[%clk 0:00:31]}  Kd8 {[%clk 0:00:20]} 41. Rg7 {[%clk 0:00:31]}  Rh1 {[%clk 0:00:20]} 42. Kg4 {[%clk 0:00:30]}  Rg1+ {[%clk 0:00:19]} 43. Kf5 {[%clk 0:00:31]}  Rh1 {[%clk 0:00:19]} 44. Kg6 {[%clk 0:00:31]}  Rg1+ {[%clk 0:00:19]} 45. Kxf6 {[%clk 0:00:32]}  Rh1 {[%clk 0:00:20]} 46. Kg6 {[%clk 0:00:32]}  Rg1+ {[%clk 0:00:20]} 47. Bg5+ {[%clk 0:00:33]}  Ke8 {[%clk 0:00:20]} 48. Re7+ {[%clk 0:00:32]}  Kf8 {[%clk 0:00:20]} 49. Ne6+ {[%clk 0:00:33]}  Kg8 {[%clk 0:00:20]} 50. Re8# {[%clk 0:00:34]} 1-0


[Site "https://www.chess.com"]

[Event "Titled Tuesday Blitz February 01 A 2022"]
[White "Musovic, Armin"]
[Black "Visakh N R"]
[WhiteFideId "939935"]
[BlackFideId "25012223"]
[WhiteElo "2250"]
[BlackElo "2454"]
[Result "0-1"]
[Round "10"]
[TimeControl "180+1"]
[Date "2022.02.01"]
[WhiteClock "0:01:03"]
[BlackClock "0:01:50"]

1. a3 {[%clk 0:03:00]}  a6 {[%clk 0:02:56]} 2. Nc3 {[%clk 0:03:01]}  Nc6 {[%clk 0:02:56]} 3. e4 {[%clk 0:03:01]}  e5 {[%clk 0:02:56]} 4. Nf3 {[%clk 0:03:02]}  Nf6 {[%clk 0:02:55]} 5. d4 {[%clk 0:03:02]}  exd4 {[%clk 0:02:55]} 6. Nd5 {[%clk 0:03:03]}  Be7 {[%clk 0:02:49]} 7. Bc4 {[%clk 0:03:00]}  O-O {[%clk 0:02:49]} 8. O-O {[%clk 0:03:00]}  b5 {[%clk 0:02:38]} 9. Ba2 {[%clk 0:02:58]}  Bb7 {[%clk 0:02:39]} 10. Nxd4 {[%clk 0:02:57]}  Nxd4 {[%clk 0:02:36]} 11. Qxd4 {[%clk 0:02:52]}  Nxd5 {[%clk 0:02:36]} 12. exd5 {[%clk 0:02:52]}  Bf6 {[%clk 0:02:30]} 13. Qd3 {[%clk 0:02:51]}  d6 {[%clk 0:02:29]} 14. c3 {[%clk 0:02:49]}  Bc8 {[%clk 0:02:28]} 15. Bf4 {[%clk 0:02:46]}  g6 {[%clk 0:02:26]} 16. Bh6 {[%clk 0:02:45]}  Re8 {[%clk 0:02:26]} 17. Rfe1 {[%clk 0:02:44]}  Bf5 {[%clk 0:02:26]} 18. Qf3 {[%clk 0:02:44]}  Be5 {[%clk 0:02:20]} 19. g4 {[%clk 0:02:36]}  Qh4 {[%clk 0:02:16]} 20. gxf5 {[%clk 0:02:19]}  Qxh2+ {[%clk 0:02:16]} 21. Kf1 {[%clk 0:02:18]}  Qxh6 {[%clk 0:02:16]} 22. Bb1 {[%clk 0:02:05]}  Kg7 {[%clk 0:02:06]} 23. Re4 {[%clk 0:01:49]}  Qc1+ {[%clk 0:01:57]} 24. Re1 {[%clk 0:01:19]}  Qxb2 {[%clk 0:01:56]} 25. Be4 {[%clk 0:01:14]}  Qxc3 {[%clk 0:01:52]} 26. Qg4 {[%clk 0:01:05]}  Qc4+ {[%clk 0:01:51]} 27. Kg2 {[%clk 0:01:04]}  Bxa1 {[%clk 0:01:51]} 28. fxg6 {[%clk 0:01:03]}  hxg6 {[%clk 0:01:50]} 0-1


[Site "https://www.chess.com"]